Workbook

Sheet Summary View (hidden)
A1: ISE 1.1.1 + Patch 2 Network Latency and Bandwidth Calculator for DB Replication - Summary
A3: Customer Inputs
A6: Total # Endpoints | B6: 10000 | C6: Total concurrent endpoints across entire deployment
A7: % Mobile Clients | B7: 50 | C7: Over a 60 minute period of time, what percentage of the above are logging in during the peak interval?
A8: Total Mobile Clients | B8: =B6*B7*0.01 -> 5000
A9: Peak Connection Interval (min) | B9: ='Detailed Analysis View'!B9 -> 60 | C9: Time interval for Total New Network Connections (or reconnections) at Peak
A10: Peak Connection Interval (sec) | B10: =B9*60 -> 3600
A11: Average New Endpoint Connections / Sec | B11: =B8/B10 -> 1.388888889
A13: % New endpoints (non-Guests) | B13: ='Detailed Analysis View'!B13 -> 1 | C13: New Endpoints as % of Total New Network Connections at Peak
A14: Number of New Endpoints | B14: =B13*B8*0.01 -> 50 | C14: Add 1 message for all new endpoints
A15: % Guest Logins | B15: ='Detailed Analysis View'!B15 -> 5 | C15: Guest user connections as % of Total New Network Connections at Peak
A16: Guest Logins During Peak Interval | B16: =B8*B15*0.01 -> 250 | C16: Add 1 message for all guest logins
A17: % New Guests | B17: ='Detailed Analysis View'!B17 -> 50 | C17: New guest users as a % of Guest Logins at Peak
A18: Number of New Guests at Peak | B18: =B16*B17*0.01 -> 125 | C18: Add 1 message for all new guests
A19: Total Number of New Endpoints or Guests | B19: =B14+B18 -> 175
A21: Is Profiling Enabled (0=no, 1=yes) | B21: 1
A22: Probes Enabled: | B22: (0=no, 1=yes)
A23: RADIUS | B23: =IF(B21<>0, 'Detailed Analysis View'!B23, 0) -> 1 | C23: Adds 1 message for all connections
A24: SNMP Trap | B24: =IF(B21<>0, 'Detailed Analysis View'!B24, 0) -> 0 | C24: Adds 1 message for all connections - Should not be enabled with RADIUS Accounting enabled.
A25: SNMP Query | B25: =IF(B21<>0, 'Detailed Analysis View'!B25, 0) -> 1 | C25: Adds 1 message for all connections
A26: DHCP probe (helper) | B26: =IF(B21<>0, 'Detailed Analysis View'!B26, 0) -> 1 | C26: Adds 2 message for all connections
A27: DHCP probe (SPAN) | B27: =IF(B21<>0, 'Detailed Analysis View'!B27, 0) -> 0 | C27: Adds 2 message for all connections - Should not be enabled with DHCP probe (Helper)
A28: HTTP probe (redirect) | B28: =IF(B21<>0, 'Detailed Analysis View'!B28, 0) -> 1 | C28: Adds 1 message for all posture, provisioning, or web auth connections
A29: HTTP (SPAN) | B29: X | C29: Not supported for Distributed Deployments - # Endpoint updates depend on actual traffic and SPAN config
A30: NMAP | B30: =IF(B21<>0, 'Detailed Analysis View'!B30, 0) -> 1 | C30: Adds 1 message for new endpoints only
A31: DNS | B31: =IF(B21<>0, 'Detailed Analysis View'!B31, 0) -> 0 | C31: Adds 1 message for all connections
A32: NetFlow | B32: X | C32: Not supported for Distributed Deployments - # Endpoint updates depend on actual traffic and NeFlow config
A34: dVLAN Assignment? (0=no, 1=yes) | B34: ='Detailed Analysis View'!B34 -> 1 | C34: Requires RADIUS, DHCP, and DNS updates.
A35: Posture Enabled? (0=no, 1=yes) | B35: ='Detailed Analysis View'!B35 -> 1 | C35: Requires RADIUS (CoA) and HTTP updates
A36: % Posture | B36: ='Detailed Analysis View'!B36 -> 20 | C36: Postured endpoints as % of Total New Network Connections at Peak
A37: Total Endpoints Postured | B37: =B35*B8*B36*0.01 -> 1000 | C37: Add 1 message if Profiling enabled for HTTP Probe
A38: RADIUS Re-Auth Period (sec) | B38: ='Detailed Analysis View'!B38 -> 3600
A39: Number of Re-Auths During Peak Interval | B39: =IF(INT(B9/(B38/60)) > 1, (B9/(B38/60))*(B6-B8)+(B9/(B38/60)-1)*B8, (B9/(B38/60))*(B6-B8)) -> 5000 | C39: Add 2 messages per re-auth during peak period if Profiling enabled for RADIUS Probe
A40: DHCP Lease Period (hours) | B40: ='Detailed Analysis View'!B40 -> 4
A41: Number of Renewals During Peak Interval | B41: =IF(INT(B9/(B40*60/2))>1,((B6-B8)*(B9/(B40*60/2)))+(B8*(B9/(B40*60/2)-1)),((B6-B8)*(B9/(B40*60/2)))) -> 2500 | C41: Add 2 messages per renewal during peak period if Profiling enabled for DHCP SPAN Probe
A43: # Messages / sec | B43: =(((B8-B19)*B21*1)+(B19*B21*B34*((1*B23)+(B63*B26)+(B64*B27)+(B67*B31)))+(B19*B21*(1+(B60*B23)+(B61*B24)+((B23+B24)*B62*B25)+(B63*B26)+(B64*B27)+(B67*B31)+(B66*B30)))+(B19*(B36*0.01)*B21*((1*B23)+(B65*B28)))+((B16*1)+ (B18*B21*((1*B23)+(B65*B28))))+(IF((B21*B39*B23)>(B21*B41*B27), B21*B39*B23,B21*B41*B27)))/B10 -> 3.373611111
A44: # Nodes at Remote Datacenter/Campus | B44: 4
A47: WAN Requirements to Remote Campus
A48: Max RT Latency Required (ms) | B48: =IF(B43=0, " RADIUS Timeout Value", 1000/B43) -> 296.4182791
A49: Min Bandwidth Required (Mbps) | B49: =B44*64*B43/1000 -> 0.8636444444
A53: ='Detailed Analysis View'!A53 -> Messages per Event Type | C53: ='Detailed Analysis View'!C53 -> 0
A54: ='Detailed Analysis View'!A54 -> RADIUS only auth | B54: ='Detailed Analysis View'!B54 -> 0 | C54: ='Detailed Analysis View'!C54 -> No db update for RADIUS only auth
A55: ='Detailed Analysis View'!A55 -> Posture only | B55: ='Detailed Analysis View'!B55 -> 0 | C55: ='Detailed Analysis View'!C55 -> Posture status is session local so no db update
A56: ='Detailed Analysis View'!A56 -> Create new guest | B56: ='Detailed Analysis View'!B56 -> 1 | C56: ='Detailed Analysis View'!C56 -> New db entry
A57: ='Detailed Analysis View'!A57 -> Guest Login | B57: ='Detailed Analysis View'!B57 -> 1 | C57: ='Detailed Analysis View'!C57 -> Update last login time to Guest db
A58: ='Detailed Analysis View'!A58 -> New endpoint detected | B58: ='Detailed Analysis View'!B58 -> 1 | C58: ='Detailed Analysis View'!C58 -> New db entry
A59: ='Detailed Analysis View'!A59 -> Provisioning/MDP entry | B59: ='Detailed Analysis View'!B59 -> 1 | C59: ='Detailed Analysis View'!C59 -> New b entry
A60: ='Detailed Analysis View'!A60 -> RADIUS probe attr | B60: ='Detailed Analysis View'!B60 -> 2 | C60: ='Detailed Analysis View'!C60 -> Typically two RADIUS updates per connection + 1 for VLAN change + 1 posture/webauth (CoA)
A61: ='Detailed Analysis View'!A61 -> SNMP Trap probe attr | B61: ='Detailed Analysis View'!B61 -> 1 | C61: ='Detailed Analysis View'!C61 -> One update if Discovery mode (0 if RADIUS used)
A62: ='Detailed Analysis View'!A62 -> SNMP Query probe attr | B62: ='Detailed Analysis View'!B62 -> 1 | C62: ='Detailed Analysis View'!C62 -> One per SNMP Trap or RADIUS Accounting Start
A63: ='Detailed Analysis View'!A63 -> DHCP probe attr (Helper) | B63: ='Detailed Analysis View'!B63 -> 2 | C63: ='Detailed Analysis View'!C63 -> Expect two updates for Discover/Request (two more if VLAN change)
A64: ='Detailed Analysis View'!A64 -> DHCP probe attr (SPAN) | B64: ='Detailed Analysis View'!B64 -> 4 | C64: ='Detailed Analysis View'!C64 -> Expect four updates for Discover/Request (four more if VLAN change)
A65: ='Detailed Analysis View'!A65 -> HTTP probe (Redirect) | B65: ='Detailed Analysis View'!B65 -> 1 | C65: ='Detailed Analysis View'!C65 -> Once per posture (or webauth or other redirect)
A66: ='Detailed Analysis View'!A66 -> NMAP Probe | B66: ='Detailed Analysis View'!B66 -> 1 | C66: ='Detailed Analysis View'!C66 -> Typically would occur only once if triggered by rule (typically for new endpoint)
A67: ='Detailed Analysis View'!A67 -> DNS Probe | B67: ='Detailed Analysis View'!B67 -> 1 | C67: ='Detailed Analysis View'!C67 -> Once per IP update (two for VLAN change)
A68: ='Detailed Analysis View'!A68 -> HTTP probe (SPAN) | B68: ='Detailed Analysis View'!B68 -> variable | C68: ='Detailed Analysis View'!C68 -> Traffic specific (not recommended and not covered by this spreadsheet)
A69: ='Detailed Analysis View'!A69 -> NetFlow | B69: ='Detailed Analysis View'!B69 -> variable | C69: ='Detailed Analysis View'!C69 -> Traffic specific (not recommended and not covered by this spreadsheet)
A71: For additional information, click here…
D75: Endpts | E75: 1 | F75: 10000
D76: upd/sec | E76: =1/3600 -> 0.0002777777778 | F76: =10000/3600 -> 2.777777778
D77: *8KB/upd | E77: =8*8*1024*E76 -> 18.20444444 | F77: =8*8*1024*F76 -> 182044.4444 | G77: bps
C79: per endpoint | D79: Log/MnT (kbps) | E79: Rep-PAN (kbps) | F79: Rep-Exc (kbps)
C80: mobile endpoints = 10 auths / hr and 1 ip change / hr | D80: =0.18 -> 0.18 | E80: =180/10000 -> 0.018 | F80: =360/10000 -> 0.036
C81: non-mobile endpoints = 1 auth per reauth period (> 1 hr per 10 hrs) and 1 ip change / day | D81: =(D80/10)/H81 -> 0.009 | E81: =E80/I82 -> 0.009 | F81: =E81*2 -> 0.018 | G81: 7200 | H81: =IF(G81 <= 3600, 1, G81/3600) -> 2 | J81: Reauth - dividing factor
G82: =4*3600 -> 14400 | H82: =G82/2 -> 7200 | I82: =IF(H82<=3600, 1, H82/3600) -> 2 | J82: DHCP - dividing factor
C86: Total Endpoints | D86: 50000
C87: % Mobile Endpoints | D87: 100
C88: Total Mobile Endpoints | D88: =D86*0.01*D87 -> 50000
C89: Total Non-Mobile Endpoints | D89: =D86-D88 -> 0
C91: Total Endpoints at Remote Site | D91: 25000
C92: % Mobile at Remote Site | D92: 100
C93: Total Mobile Endpoints Remote Site | D93: =D91*0.01*D92 -> 25000
C94: Total Non-Mobile Endpoints Remote Site | D94: =D91-D93 -> 0
C95: # PSN nodes at Remote Site | D95: 3
C96: Secondary PAN node at Remote Site? (1=yes, 0=no) | D96: 1
C97: Secondary MnT node at Remote Site? (1=yes, 0=no) | D97: 1
C98: MnT Logging Factor | D98: =ABS(D97-2) -> 1
C99: Audit Logging (Mbps) | D99: =D98*((D93*D80) + (D94*D81)) -> 4500
C100: DB Replication | D100: =(D95+D97+D96)*((D88*E80)+(D89*E81)) -> 4500
C101: Sending profile data for same endpoints to multiple node groups? (1=yes, 0=no) | D101: 1
C102: DB Replication for Ownership Change | D102: =D101*D95*((D88*F80)+(D89*F81)) -> 5400
C103: Total BW Required for WAN Link from Remote Site to Primary PAN/MnT (kbps) | D103: =D99+D100+D102 -> 14400
C104: Total BW Required for WAN Link from Remote Site to Primary PAN/MnT(Mbps) | D104: =D103*0.001 -> 14.4
C106: Assumptions = suppression enabled, 1 node group per location,

Sheet Detailed Analysis View (hidden)
A1: ISE 1.1.1 + Patch 2 Latency and Bandwidth Calculator for DB Replication - Enter values into yellow highlighted boxes
A3: Customer Inputs
A4: Assume peak rate - for example, start of week and start of day - when majority of endpoints connect to network
A6: Total # Endpoints | B6: 10000 | C6: Total concurrent endpoints across entire deployment
A7: % Establishing Network Connections at Peak | B7: 50 | C7: Endpoints as % of Total Endpoints connecting or reconnecting to network during peak access period
A8: Total New Network Connections at Peak | B8: =B6*B7*0.01 -> 5000
A9: Peak Connection Interval (min) | B9: 60 | C9: Time interval for Total New Network Connections (or reconnections) at Peak
A10: Peak Connection Interval (sec) | B10: =B9*60 -> 3600
A11: Average New Endpoint Connections / Sec | B11: =B8/B10 -> 1.388888889
A13: % New endpoints (non-Guests) | B13: 1 | C13: New Endpoints as % of Total New Network Connections at Peak
A14: Number of New Endpoints | B14: =B13*B8*0.01 -> 50
A15: % Guest Logins | B15: 5 | C15: Guest user connections as % of Total New Network Connections at Peak
A16: Guest Logins During Peak Interval | B16: =B8*B15*0.01 -> 250
A17: % New Guests | B17: 50 | C17: New guest users as a % of Guest Logins at Peak
A18: Number of New Guests at Peak | B18: =B16*B17*0.01 -> 125
A19: Total Number of New Endpoints or Guests | B19: =B14+B18 -> 175
A21: Is Profiling Enabled (0=no, 1=yes) | B21: 1
A22: Probes Enabled: | B22: (0=no, 1=yes)
A23: RADIUS | B23: 1
A24: SNMP Trap | B24: 0
A25: SNMP Query | B25: 1
A26: DHCP probe (helper) | B26: 1
A27: DHCP probe (SPAN) | B27: 0
A28: HTTP probe (redirect) | B28: 1
A29: HTTP (SPAN) | B29: X | C29: Not supported for Distributed Deployments - # Endpoint updates depend on actual traffic and SPAN config
A30: NMAP | B30: 1
A31: DNS | B31: 0
A32: NetFlow | B32: X | C32: Not supported for Distributed Deployments - # Endpoint updates depend on actual traffic and NeFlow config
A34: dVLAN Assignment? (0=no, 1=yes) | B34: 1 | C34: Is VLAN assignment used to enforce access policies for authorized endpoints?
A35: Posture Enabled? (0=no, 1=yes) | B35: 1 | C35: Is Posture Assessment using NAC or Web Agent enabled to determine endpoint compliance?
A36: % Posture | B36: 20 | C36: Postured endpoints as % of Total New Network Connections at Peak
A37: Total Endpoints Postured | B37: =B35*B8*B36*0.01 -> 1000
A38: RADIUS Re-Auth Period (sec) | B38: 3600 | C38: Average RADIUS reauthentication interval for authenticated endpoints
A39: Number of Re-Auths During Peak Interval | B39: =IF(INT(B9/(B38/60)) > 1, (B9/(B38/60))*(B6-B8)+(B9/(B38/60)-1)*B8, (B9/(B38/60))*(B6-B8)) -> 5000
A40: DHCP Lease Period (hours) | B40: 4 | C40: Average DHCP lease period configured for DHCP clients
A41: Number of Renewals During Peak Interval | B41: =IF(INT(B9/(B40*60/2))>1,((B6-B8)*(B9/(B40*60/2)))+(B8*(B9/(B40*60/2)-1)),((B6-B8)*(B9/(B40*60/2)))) -> 2500
A43: # Messages / sec | B43: =(((B8-B19)*B21*1)+(B19*B21*B34*((1*B23)+(B63*B26)+(B64*B27)+(B67*B31)))+(B19*B21*(1+(B60*B23)+(B61*B24)+((B23+B24)*B62*B25)+(B63*B26)+(B64*B27)+(B67*B31)+(B66*B30)))+(B19*(B36*0.01)*B21*((1*B23)+(B65*B28)))+((B16*1)+ (B18*B21*((1*B23)+(B65*B28))))+(IF((B21*B39*B23)>(B21*B41*B27), B21*B39*B23,B21*B41*B27)))/B10 -> 3.373611111
A44: # ISE Nodes at Primary Datacenter/Campus | B44: 4 | C44: Includes total number of ISE nodes (any persona) at the primary location
A45: # ISE Nodes at Backup DC/Remote Campus | B45: 4 | C45: Includes total number of ISE nodes (any persona) at the remote location
A47: WAN Requirements to Remote Campus
A48: Max RT Latency Required (ms) | B48: =IF(B43=0, " RADIUS Timeout Value", 1000/B43) -> 296.4182791
A49: Min BW Required within Main Campus (Mbps) | B49: =B44*64*B43/1000 -> 0.8636444444
A50: Min BW Required to Remote Campus (Mbps) | B50: =B45*64*B43/1000 -> 0.8636444444
A53: Messages per Event Type
A54: RADIUS only auth | B54: 0 | C54: No db update for RADIUS only auth
A55: Posture only | B55: 0 | C55: Posture status is session local so no db update
A56: Create new guest | B56: 1 | C56: New db entry
A57: Guest Login | B57: 1 | C57: Update last login time to Guest db
A58: New endpoint detected | B58: 1 | C58: New db entry
A59: Provisioning/MDP entry | B59: 1 | C59: New b entry
A60: RADIUS probe attr | B60: 2 | C60: Typically two RADIUS updates per connection + 1 for VLAN change + 1 posture/webauth (CoA)
A61: SNMP Trap probe attr | B61: 1 | C61: One update if Discovery mode (0 if RADIUS used)
A62: SNMP Query probe attr | B62: 1 | C62: One per SNMP Trap or RADIUS Accounting Start
A63: DHCP probe attr (Helper) | B63: 2 | C63: Expect two updates for Discover/Request (two more if VLAN change)
A64: DHCP probe attr (SPAN) | B64: 4 | C64: Expect four updates for Discover/Request (four more if VLAN change)
A65: HTTP probe (Redirect) | B65: 1 | C65: Once per posture (or webauth or other redirect)
A66: NMAP Probe | B66: 1 | C66: Typically would occur only once if triggered by rule (typically for new endpoint)
A67: DNS Probe | B67: 1 | C67: Once per IP update (two for VLAN change)
A68: HTTP probe (SPAN) | B68: variable | C68: Traffic specific (not recommended and not covered by this spreadsheet)
A69: NetFlow | B69: variable | C69: Traffic specific (not recommended and not covered by this spreadsheet)

Sheet Single-Site Calc
A1: ISE 1.x Network Bandwidth Calculation for Single Remote Location
B3: Endpts | C3: 1 | D3: 10000
B4: upd/sec | C4: =1/3600 -> 0.0002777777778 | D4: =10000/3600 -> 2.777777778
B5: *8KB/upd | C5: =8*8*1024*C4 -> 18.20444444 | D5: =8*8*1024*D4 -> 182044.4444 | E5: bps
A7: per endpoint | B7: Log/MnT (kbps) | C7: Rep-PAN (kbps) | D7: Rep=PSN (kbps) | E7: Own-Not (kbps)
A8: mobile endpoints = 10 auths / hr and 1 ip change / hr | B8: =1800/10000 -> 0.18 | C8: =180/10000 -> 0.018 | D8: =C8*2 -> 0.036 | E8: =D8/8 -> 0.0045
A9: non-mobile endpoints = 1 auth per reauth period (> 1/hr per 10 hrs) and 1 ip change / day | B9: =(B8/10)/E17 -> 0.009 | C9: =C8/E18 -> 0.009 | D9: =C9*2 -> 0.018 | E9: =D9/8 -> 0.00225
A12: Total Active Endpoints | B12: 100
A13: % Mobile Endpoints | B13: 20
A14: Total Mobile Endpoints | B14: =B12*0.01*B13 -> 20
A15: Total Non-Mobile Endpoints | B15: =B12-B14 -> 80
A17: =IF(B14<100, "Reauth Interval (Default 2 hrs)", "") -> Reauth Interval (Default 2 hrs) | B17: 2 | C17: =B17*3600 -> 7200 | E17: =IF(C17 <= 3600, 1, C17/3600) -> 2 | F17: Reauth - dividing factor
A18: =IF(B14<100, "DHCP Lease Period (Default 4 hrs)", "") -> DHCP Lease Period (Default 4 hrs) | B18: 4 | C18: =B18*3600 -> 14400 | D18: =C18/2 -> 7200 | E18: =IF(D18<=3600, 1, D18/3600) -> 2 | F18: DHCP - dividing factor
A20: Total Active Endpoints at Remote Site | B20: 50
A21: % Mobile Endpoints at Remote Site | B21: 20
A22: Total Mobile Endpoints Remote Site | B22: =B20*0.01*B21 -> 10
A23: Total Non-Mobile Endpoints Remote Site | B23: =B20-B22 -> 40
A24: # PSN nodes at Remote Site | B24: 1
A25: Secondary PAN node at Remote Site? (1=yes, 0=no) | B25: 1
A26: Secondary MnT node at Remote Site? (1=yes, 0=no) | B26: 1
A27: MnT Logging Factor | B27: =ABS(B26-2) -> 1
A28: Audit Logging (Mbps) | B28: =B27*((B22*B8) + (B23*B9)) -> 2.16
A29: DB Replication | B29: =(B24+B26+B25)*((B14*C8)+(B15*C9)) -> 3.24
A30: Sending profile data for same endpoints to multiple locations? (1=yes, 0=no) | B30: 0
A31: DB Replication for Ownership Change | B31: =B30*((B24+B25+B26)*((B14*E8)+(B15*E9))+(B22*D8)+(B23*D9)) -> 0
A32: Total BW Required for WAN Link from Remote Site to Primary PAN/MnT (kbps) | B32: =B28+B29+B31 -> 5.4
A33: Total BW Required for WAN Link from Remote Site to Primary PAN/MnT (Mbps) | B33: =B32*0.001 -> 0.0054
A35: Calculator Assumptions: • ISE Auth Suppression enabled • Profiling Whitelist Filter enabled • One node group per location • For Single-Site calculation, primary PAN and MnT nodes are deployed in primary Data Center to which bandwidth is calculated; For Multi-Site calculation, primary PAN is deployed in primary DC. • Mobile endpoints authenticate/reauthenticate as frequently as 10/hr and refresh IP 1/hr • Non-Mobile endpoints authenticate/reauthenticate no more than once per Reauth Interval and refresh IP address no more than once per DHCP renewal (1/2 Lease Period) • Bandwidth required for NAD or Guest Activity logging is not included. These logging activities are highly variable and should be treated separately based on deployment requirements. • Bandwidth required for general RADIUS auth and accounting traffic is not included. RADIUS traffic is generally less significant but actual requirement is highly contingent on multiple factors including total active endpoints, reauth intervals, and the authentication protocols used. • Deployments where all ISE nodes are deployed in one location are not considered by this calculator. All nodes deployed in the same location are assumed to be connected by high-speed LAN links (Gigabit Ethernet or higher) • Max round-trip latency between any two ISE v1.x nodes is currently set at 200ms.

Sheet Multi-Site Calc
A1: ISE 1.x Network Bandwidth Calculation for Multiple Remote Locations
A3: Total Active Endpoints | B3: 100 | S3: <-- | T3: Mobile | U3: Non-Mobile | W3: Log/MnT (kbps) | X3: Rep-PAN (kbps) | Y3: Rep-PSN (kbps) | Z3: Own-Notif (kbps)
A4: % Mobile Endpoints | B4: 20 | S4: <-- | T4: =B3*B4/100 -> 20 | U4: =B3-T4 -> 80 | V4: mobile | W4: =1800/10000 -> 0.18 | X4: =180/10000 -> 0.018 | Y4: =X4*2 -> 0.036 | Z4: =Y4/8 -> 0.0045
A5: # Remote Locations with PSNs (Not including data centers) | B5: 0 | V5: non-mobile | W5: =(W4/10)/V7 -> 0.009 | X5: =X4/V8 -> 0.009 | Y5: =X5*2 -> 0.018 | Z5: =Y5/8 -> 0.00225
A6: Sending profile data for same endpoints to multiple locations? | S6: <-- | T6: FALSE | V6: Total Rep | X6: =($T$4*X4)+($U$4*X5) -> 1.08 | Z6: =($T$4*Z4)+($U$4*Z5) -> 0.27
A7: =IF(B4<100, "Reauth Interval (Default 2 hrs)", "") -> Reauth Interval (Default 2 hrs) | B7: 2 | S7: <-- | T7: =B7*3600 -> 7200 | V7: =IF(T7 <= 3600, 1, T7/3600) -> 2 | W7: Reauth Multiplier (reauth x 1 per hr)
A8: =IF(B4<100, "DHCP Lease Period (Default 4 hrs)", "") -> DHCP Lease Period (Default 4 hrs) | B8: 4 | S8: <-- | T8: =B8*3600 -> 14400 | U8: =T8/2 -> 7200 | V8: =IF(U8<=3600, 1, U8/3600) -> 2 | W8: IP Refresh Multiplier (ip change x 1 per hr)
E9: (P)=Primary | G9: (S)=Secondary | I9: =IF(SUM($I$11:$I$52)>40, "Max PSN count of 40 exceeded!", "") ->  | AB9: Aggregate DC Head-End WAN Bandwidth (Mbps)
A10: Location | B10: Bandwidth Reqd to DC1 (Mbps) | C10: Bandwidth Reqd to DC2 (Mbps) | D10: Total DC Band-width (Mbps) | E10: PAN(P) | F10: PAN(S) | G10: MNT(P) | H10: MNT(S) | I10: # PSNs | J10: # Active Endpoints | L10: # Mobile | M10: # Non-Mobile | N10: 1 | O10: 2 | P10: 1 | Q10: 2 | S10: MaxPSN | T10: Max Endpt | V10: MNT Log (DC2) | W10: MNT Log (DC1) | X10: PAN (P) Replication | Y10: Owner Change Replication | Z10: Owner Change Notification | AA10: Owner Change Total | AB10: MnT Log BW | AC10: Replication BW | AD10: Ownership Change BW | AE10: Total
A11: DC1/Main Campus | B11: N/A | C11: =SUM(V11) -> 0.00216 | D11: =IF(SUM(B11:C11)>0,SUM(B11:C11),"") -> 0.00216 | I11: 1 | J11: 50 | L11: =IF(J11<>"",J11*$B$4/100,0) -> 10 | M11: =IF(J11<>"",J11-L11,0) -> 40 | N11: =IF(N10=1,1,0) -> 1 | O11: =IF(O10=1,1,0) -> 0 | P11: =IF(P10=1,1,0) -> 1 | Q11: =IF(Q10=1,1,0) -> 0 | S11: =SUM($I$11:$I$52)-I11 -> 1 | T11: =SUM($J$11:$J$52)-J11 -> 50 | V11: =($P$12+$Q$12)*(($L$11*$W$4)+($M$11*$W$5))/1000 -> 0.00216 | W11: 0 | X11: 0 | Y11: 0 | Z11: 0 | AA11: =Y11+Z11 -> 0 | AB11: =W53 -> 0.00216 | AC11: =X53 -> 0.00324 | AD11: =AA53 -> 0 | AE11: =SUM(AB11:AD11) -> 0.0054
A12: DC2/Secondary Campus | B12: =SUM(W12:Z12) -> 0.0054 | C12: N/A | D12: 0.0054 | I12: 1 | J12: 50 | L12: =IF(J12<>"",J12*$B$4/100,0) -> 10 | M12: =IF(J12<>"",J12-L12,0) -> 40 | N12: =IF(N10=1,0,1) -> 0 | O12: =IF(O10=1,0,1) -> 1 | P12: =IF(P10=1,0,1) -> 0 | Q12: =IF(Q10=1,0,1) -> 1 | S12: 1 | T12: 50 | V12: 0 | W12: =IF($I$12>0,($P$11+$Q$11)*(($L$12*$W$4)+($M$12*$W$5))/1000, 0) -> 0.00216 | X12: =SUM(I12+O12+P12+Q12)*$X$6/1000 -> 0.00324 | Y12: =IF($T$6=TRUE,(L12*$Y$4+M12*$Y$5)/1000, 0) -> 0 | Z12: =IF($T$6=TRUE,SUM(I12+O12+P12+Q12)*$Z$6/1000, 0) -> 0 | AA12: =Y12+Z12 -> 0 | AB12: =V53 -> 0.00216 | AC12: =X12 -> 0.00324 | AD12: =Y12+Z12 -> 0 | AE12: =SUM(AB12:AD12) -> 0.0054
A13: =IF(B$5>O13, "Remote Site " &(O13+1), "") ->  | B13: =IF(I13>0,SUM(W13:Z13),"") ->  | C13: =IF(I13>0,SUM(V13),"") ->  | L13: 0 | M13: 0 | N13: =ROW() -> 13 | O13: =ROW() -N$13 -> 0 | S13: 2 | T13: 100 | V13: =IF(I13>0,($P$12+$Q$12)*((L13*$W$4)+(M13*$W$5))/1000,0) -> 0 | W13: =IF(I13>0,($P$11+$Q$11)*((L13*$W$4)+(M13*$W$5))/1000,0) -> 0 | X13: =I13*$X$6/1000 -> 0 | Y13: =IF($T$6=TRUE,(L13*$Y$4+M13*$Y$5)/1000, 0) -> 0 | Z13: =IF($T$6=TRUE, I13*$Z$6/1000, 0) -> 0 | AA13: 0
B14: =IF(I14>0,SUM(W14:Z14),"") ->  | C14: =IF(I14>0,SUM(V14),"") ->  | L14: 0 | M14: 0 | N14: =ROW() -> 14 | O14: =ROW() -N$13 -> 1 | S14: 2 | T14: 100 | V14: =IF(I14>0,($P$12+$Q$12)*((L14*$W$4)+(M14*$W$5))/1000,0) -> 0 | W14: =IF(I14>0,($P$11+$Q$11)*((L14*$W$4)+(M14*$W$5))/1000,0) -> 0 | X14: =I14*$X$6/1000 -> 0 | Y14: =IF($T$6=TRUE,(L14*$Y$4+M14*$Y$5)/1000, 0) -> 0 | Z14: =IF($T$6=TRUE, I14*$Z$6/1000, 0) -> 0 | AA14: 0
L15: 0 | M15: 0 | N15: =ROW() -> 15 | O15: 2 | S15: 2 | T15: 100 | V15: 0 | W15: 0 | X15: 0 | Y15: =IF($T$6=TRUE,(L15*$Y$4+M15*$Y$5)/1000, 0) -> 0 | Z15: 0 | AA15: 0
L16: 0 | M16: 0 | N16: =ROW() -> 16 | O16: 3 | S16: 2 | T16: 100 | V16: 0 | W16: 0 | X16: 0 | Y16: 0 | Z16: 0 | AA16: 0
L17: 0 | M17: 0 | N17: =ROW() -> 17 | O17: 4 | S17: 2 | T17: 100 | V17: 0 | W17: 0 | X17: 0 | Y17: 0 | Z17: 0 | AA17: 0
L18: 0 | M18: 0 | N18: =ROW() -> 18 | O18: 5 | S18: 2 | T18: 100 | V18: 0 | W18: 0 | X18: 0 | Y18: 0 | Z18: 0 | AA18: 0
L19: 0 | M19: 0 | N19: =ROW() -> 19 | O19: 6 | S19: 2 | T19: 100 | V19: 0 | W19: 0 | X19: 0 | Y19: 0 | Z19: 0 | AA19: 0
L20: 0 | M20: 0 | N20: =ROW() -> 20 | O20: 7 | S20: 2 | T20: 100 | V20: 0 | W20: 0 | X20: 0 | Y20: 0 | Z20: 0 | AA20: 0
L21: 0 | M21: 0 | N21: =ROW() -> 21 | O21: 8 | S21: 2 | T21: 100 | V21: 0 | W21: 0 | X21: 0 | Y21: 0 | Z21: 0 | AA21: 0
L22: 0 | M22: 0 | N22: =ROW() -> 22 | O22: 9 | S22: 2 | T22: 100 | V22: 0 | W22: 0 | X22: 0 | Y22: 0 | Z22: 0 | AA22: 0
L23: 0 | M23: 0 | N23: =ROW() -> 23 | O23: 10 | S23: 2 | T23: 100 | V23: 0 | W23: 0 | X23: 0 | Y23: 0 | Z23: 0 | AA23: 0
L24: 0 | M24: 0 | N24: =ROW() -> 24 | O24: 11 | S24: 2 | T24: 100 | V24: 0 | W24: 0 | X24: 0 | Y24: 0 | Z24: 0 | AA24: 0
L25: 0 | M25: 0 | N25: =ROW() -> 25 | O25: 12 | S25: 2 | T25: 100 | V25: 0 | W25: 0 | X25: 0 | Y25: 0 | Z25: 0 | AA25: 0
L26: 0 | M26: 0 | N26: =ROW() -> 26 | O26: 13 | S26: 2 | T26: 100 | V26: 0 | W26: 0 | X26: 0 | Y26: 0 | Z26: 0 | AA26: 0
L27: 0 | M27: 0 | N27: =ROW() -> 27 | O27: 14 | S27: 2 | T27: 100 | V27: 0 | W27: 0 | X27: 0 | Y27: 0 | Z27: 0 | AA27: 0
L28: 0 | M28: 0 | N28: =ROW() -> 28 | O28: 15 | S28: 2 | T28: 100 | V28: 0 | W28: 0 | X28: 0 | Y28: 0 | Z28: 0 | AA28: 0
L29: 0 | M29: 0 | N29: =ROW() -> 29 | O29: 16 | S29: 2 | T29: 100 | V29: 0 | W29: 0 | X29: 0 | Y29: 0 | Z29: 0 | AA29: 0
L30: 0 | M30: 0 | N30: =ROW() -> 30 | O30: 17 | S30: 2 | T30: 100 | V30: 0 | W30: 0 | X30: 0 | Y30: 0 | Z30: 0 | AA30: 0
L31: 0 | M31: 0 | N31: =ROW() -> 31 | O31: 18 | S31: 2 | T31: 100 | V31: 0 | W31: 0 | X31: 0 | Y31: 0 | Z31: 0 | AA31: 0
L32: 0 | M32: 0 | N32: =ROW() -> 32 | O32: 19 | S32: 2 | T32: 100 | V32: 0 | W32: 0 | X32: 0 | Y32: 0 | Z32: 0 | AA32: 0
L33: 0 | M33: 0 | N33: =ROW() -> 33 | O33: 20 | S33: 2 | T33: 100 | V33: 0 | W33: 0 | X33: 0 | Y33: 0 | Z33: 0 | AA33: 0
L34: 0 | M34: 0 | N34: =ROW() -> 34 | O34: 21 | S34: 2 | T34: 100 | V34: 0 | W34: 0 | X34: 0 | Y34: 0 | Z34: 0 | AA34: 0
L35: 0 | M35: 0 | N35: =ROW() -> 35 | O35: 22 | S35: 2 | T35: 100 | V35: 0 | W35: 0 | X35: 0 | Y35: 0 | Z35: 0 | AA35: 0
L36: 0 | M36: 0 | N36: =ROW() -> 36 | O36: 23 | S36: 2 | T36: 100 | V36: 0 | W36: 0 | X36: 0 | Y36: 0 | Z36: 0 | AA36: 0
L37: 0 | M37: 0 | N37: =ROW() -> 37 | O37: 24 | S37: 2 | T37: 100 | V37: 0 | W37: 0 | X37: 0 | Y37: 0 | Z37: 0 | AA37: 0
L38: 0 | M38: 0 | N38: =ROW() -> 38 | O38: 25 | S38: 2 | T38: 100 | V38: 0 | W38: 0 | X38: 0 | Y38: 0 | Z38: 0 | AA38: 0
L39: 0 | M39: 0 | N39: =ROW() -> 39 | O39: 26 | S39: 2 | T39: 100 | V39: 0 | W39: 0 | X39: 0 | Y39: 0 | Z39: 0 | AA39: 0
L40: 0 | M40: 0 | N40: =ROW() -> 40 | O40: 27 | S40: 2 | T40: 100 | V40: 0 | W40: 0 | X40: 0 | Y40: 0 | Z40: 0 | AA40: 0
L41: 0 | M41: 0 | N41: =ROW() -> 41 | O41: 28 | S41: 2 | T41: 100 | V41: 0 | W41: 0 | X41: 0 | Y41: 0 | Z41: 0 | AA41: 0
L42: 0 | M42: 0 | N42: =ROW() -> 42 | O42: 29 | S42: 2 | T42: 100 | V42: 0 | W42: 0 | X42: 0 | Y42: 0 | Z42: 0 | AA42: 0
L43: 0 | M43: 0 | N43: =ROW() -> 43 | O43: 30 | S43: 2 | T43: 100 | V43: 0 | W43: 0 | X43: 0 | Y43: 0 | Z43: 0 | AA43: 0
L44: 0 | M44: 0 | N44: =ROW() -> 44 | O44: 31 | S44: 2 | T44: 100 | V44: 0 | W44: 0 | X44: 0 | Y44: 0 | Z44: 0 | AA44: 0
L45: 0 | M45: 0 | N45: =ROW() -> 45 | O45: 32 | S45: 2 | T45: 100 | V45: 0 | W45: 0 | X45: 0 | Y45: 0 | Z45: 0 | AA45: 0
L46: 0 | M46: 0 | N46: =ROW() -> 46 | O46: 33 | S46: 2 | T46: 100 | V46: 0 | W46: 0 | X46: 0 | Y46: 0 | Z46: 0 | AA46: 0
L47: 0 | M47: 0 | N47: =ROW() -> 47 | O47: 34 | S47: 2 | T47: 100 | V47: 0 | W47: 0 | X47: 0 | Y47: 0 | Z47: 0 | AA47: 0
L48: 0 | M48: 0 | N48: =ROW() -> 48 | O48: 35 | S48: 2 | T48: 100 | V48: 0 | W48: 0 | X48: 0 | Y48: 0 | Z48: 0 | AA48: 0
L49: 0 | M49: 0 | N49: =ROW() -> 49 | O49: 36 | S49: 2 | T49: 100 | V49: 0 | W49: 0 | X49: 0 | Y49: 0 | Z49: 0 | AA49: 0
L50: 0 | M50: 0 | N50: =ROW() -> 50 | O50: 37 | S50: 2 | T50: 100 | V50: 0 | W50: 0 | X50: 0 | Y50: 0 | Z50: 0 | AA50: 0
L51: 0 | M51: 0 | N51: =ROW() -> 51 | O51: 38 | S51: 2 | T51: 100 | V51: 0 | W51: 0 | X51: 0 | Y51: 0 | Z51: 0 | AA51: 0
L52: 0 | M52: 0 | N52: =ROW() -> 52 | O52: 39 | S52: 2 | T52: 100 | V52: 0 | W52: 0 | X52: 0 | Y52: 0 | Z52: 0 | AA52: 0
A53: Total PSNs and Endpoints | I53: =SUM(I11:I52) -> 2 | J53: =SUM(J11:J52) -> 100 | V53: =SUM(V11:V52) -> 0.00216 | W53: =SUM(W12:W52) -> 0.00216 | X53: =SUM(X12:X52) -> 0.00324 | Y53: =SUM(Y12:Y52) -> 0 | Z53: =SUM(Z12:Z52) -> 0 | AA53: =SUM(AA12:AA52) -> 0
I54: =40-I53 -> 38 | J54: =B3-J53 -> 0
